bitfinex-derivatives/quotes_ETHF0:USTF0_20210111
["timestamp","ask_amount","ask_price","bid_price","bid_amount"]
[1610379948463,1.5183,1002.2,1001.9,4.00959]
[1610379950562,1.8235,1002.5,1002.2,3.4817]
[1610379950761,4.00959,1002.9,1002.2,3.4817]
[1610379951665,2.3633,1003.7,1002.2,3.4817]
[1610379951864,6.3369,1004.5,1002.2,3.4817]
[1610379953968,8.3044,1004.5,1002.2,3.4817]
[1610379954167,8.3044,1004.5,1003.0,4.00959]
[1610379954370,8.3044,1004.5,1001.6,2.0246]
[1610379954569,9.9154,1004.5,1001.3,10.9667]
[1610379955072,9.9154,1004.5,1001.7,79.1271]
[1610379956272,4.00959,1002.4,1002.1,4.00959]
[1610379956473,6.21899,1002.4,1001.7,79.1271]
[1610379956874,2.2094,1002.4,1001.7,79.1271]
[1610379957877,2.2094,1002.4,1000.8,75.5583]
[1610379958276,4.00959,1002.0,1001.4,4.00959]
[1610379958475,5.59389,1002.0,1001.4,4.00959]
[1610379959476,5.59389,1002.0,1000.8,75.5583]
[1610379960277,4.00959,1001.1,1000.8,75.5583]
[1610379960481,5.57439,1001.1,1000.8,75.5583]
[1610379962180,4.00959,1000.9,1000.8,75.5583]
[1610379962981,1.9851,1000.9,1000.8,2.016]
[1610379963179,0.0001,1000.9,1000.8,2.016]
[1610379963384,2.2063,1001.1,1000.8,11.016]
[1610379963585,45.9892,1000.0,999.96,1.9721]
[1610379963784,44.1455,1000.0,999.96,1.9721]
[1610379963985,37.521,1000.0,999.96,1.9721]
[1610379964184,37.521,1000.0,999.99,4.00959]
[1610379964185,31.9636,1000.0,999.99,4.00959]
[1610379964385,1.5783,1001.1,999.99,36.40209]
[1610379964585,0.9884,1001.1,1000.8,77.0049]
[1610379964786,1.5843,1002.0,1000.8,79.0279]
[1610379964986,2.2094,1002.4,1000.8,77.0049]
[1610379965187,2.0044,1002.4,1000.8,77.0049]
[1610379965589,1.9952,1002.7,1000.8,77.0049]
[1610379965787,1.9952,1002.7,1002.4,0.4]
[1610379965988,1.9952,1002.7,1000.8,77.0049]
[1610379966188,4.00959,1001.3,1000.8,81.01449]
[1610379966389,6.26219,1001.3,1000.8,81.01449]
[1610379966589,2.2526,1001.3,1000.8,81.01449]
[1610379968291,2.2526,1001.3,1001.2,4.00959]
[1610379968693,2.2526,1001.3,1000.8,77.0049]
[1610379970295,2.2526,1001.3,1001.2,4.00959]
[1610379970696,2.2526,1001.3,1000.8,77.0049]
[1610379971493,1.9538,1001.3,1000.8,77.0049]
[1610379972297,4.00959,1001.2,1000.9,4.00959]
[1610379972495,4.00959,1001.2,1000.8,77.0049]
[1610379973797,4.00959,1001.2,999.74,61.099]
[1610379974398,4.00959,1000.2,998.39,63.8344]
[1610379974697,6.14359,1000.2,998.39,63.8344]
[1610379975900,7.14337,1000.2,998.39,63.8344]
[1610379976200,73.9937,999.94,997.21,73.7623]
[1610379976400,4.00959,998.4,997.21,73.7623]
[1610379976600,5.84059,998.4,997.21,73.7623]
[1610379978302,4.00959,997.22,995.27,4.00959]
[1610379978505,5.60059,997.22,994.93,0.30870917]
[1610379978703,5.60059,997.22,994.59,0.30883035]
[1610379979303,71.6253,996.84,994.59,0.30883035]
[1610379979504,73.2453,996.84,994.09,61.93661749]
[1610379980304,4.00959,994.61,994.23,4.00959]
[1610379980505,5.95059,994.61,994.23,4.00959]
[1610379980704,5.95059,994.61,994.09,61.6276]
[1610379982305,4.00959,994.1,994.09,61.6276]
[1610379982507,6.43259,994.1,994.09,61.6276]
[1610379983108,6.43259,994.1,994.09,56.6346]
[1610379983307,6.43259,994.1,992.49,0.30940817]
[1610379983909,6.43259,994.1,992.5,2.0324]
[1610379984312,4.00959,992.51,992.5,2.0324]
[1610379984712,4.00959,992.51,992.19,1.659]
[1610379985213,4.00959,992.51,992.02,0.30961551]
[1610379985415,4.00959,992.51,991.68,0.30965977]
[1610379986014,4.00959,992.51,991.41,0.30975348]
[1610379986416,2.274,992.53,991.31,0.61950696]
[1610379986615,2.274,992.53,990.95,0.61994125]
[1610379987415,2.274,992.53,990.46,1.85982374]
[1610379987416,2.274,992.53,990.46,0.62007392]
[1610379988121,71.8011,992.52,990.46,0.62007392]
[1610379988315,4.00959,991.96,990.91,4.00959]
[1610379988518,5.50959,991.96,990.91,4.00959]
[1610379988717,1.5,991.96,990.92,11.009]
[1610379988918,1.5,991.96,991.02,30.0]
[1610379989116,0.3867,992.2,991.02,30.0]
[1610379989321,70.6966,992.52,991.03,9.0]
[1610379989516,79.9968,994.34,991.13,30.0]
[1610379989718,79.9968,994.34,991.14,2.0321]
[1610379989917,64.5808,996.02,991.88,75.8068]
[1610379990118,64.5808,996.02,991.98,30.0]
[1610379990316,4.00959,994.85,994.19,4.00959]
[1610379990516,1.829,994.85,994.19,4.00959]
[1610379991517,64.5808,996.02,994.19,4.00959]
[1610379991721,2.039,994.85,994.19,4.00959]
[1610379992121,64.5808,996.02,994.19,4.00959]
[1610379992320,64.5808,996.02,995.48,4.00959]
[1610379992721,75.5232,996.17,995.48,4.00959]
[1610379992921,22.05017233,997.55,995.48,4.00959]
[1610379993120,22.05017233,997.55,994.4,1.987]
[1610379993320,1.995,997.54,994.4,1.987]
[1610379993521,1.23822,997.34,994.4,1.987]
[1610379993721,2.0163,997.33,994.4,1.987]
[1610379993921,2.0163,997.33,992.58,0.61873842]
[1610379994320,4.00959,992.84,992.73,4.00959]
[1610379994520,6.01759,992.84,992.58,0.61873842]
[1610379995120,6.01759,992.84,992.65,0.61959709]
[1610379995720,6.01759,992.84,991.2,2.171]
[1610379996321,4.00959,992.16,991.2,2.171]
[1610379996523,1.966,992.16,991.2,2.171]
[1610379996724,2.008,992.84,991.2,2.171]
[1610379996923,2.0402,993.67,991.2,2.171]
[1610379997125,1.0182,995.28,991.2,2.171]
[1610379997526,1.0182,995.28,991.4,2.386]
[1610379997926,1.0182,995.28,991.2,2.171]
[1610379998327,4.00959,992.09,991.63,4.00959]
[1610379998526,6.17859,992.09,991.63,4.00959]
[1610379998727,6.17859,992.09,991.2,2.171]
[1610379999329,6.17859,992.09,989.73,0.31016578]
[1610379999728,6.17859,992.09,989.2,0.31034979]
[1610380000127,6.17859,992.09,989.45,9.0]
[1610380000329,6.17859,992.09,991.57,4.00959]
[1610380000330,2.169,992.09,991.57,4.00959]
[1610380000527,1.9911,993.48,991.57,4.00959]
[1610380000727,21.99884758,994.92,991.58,1.987]
[1610380000927,21.99884758,994.92,991.58,10.987]
[1610380001129,22.06336578,995.13,991.58,10.987]
[1610380001731,2.0207,995.43,991.58,10.987]
[1610380002231,22.16116282,995.69,991.58,10.987]
[1610380002431,4.00959,993.64,993.16,4.00959]
[1610380002631,1.504,993.64,993.16,4.00959]
[1610380002831,2.0191,995.88,995.43,1.057]
[1610380003031,2.0191,995.88,993.16,4.00959]
[1610380003231,4.0181,995.88,993.16,4.00959]
[1610380003632,65.5953,995.22,993.17,2.0201]
[1610380003833,2.0302,995.21,993.16,4.00959]
[1610380004235,3.6652,995.21,993.16,4.00959]
[1610380004433,4.00959,994.07,993.4,4.00959]
[1610380004636,5.97759,994.07,993.4,4.00959]
[1610380004833,5.97759,994.07,991.58,2.216]
[1610380006034,1.03277,994.01,990.4,0.31010602]
[1610380006434,4.00959,990.61,989.98,0.31018757]
[1610380006634,4.00959,990.61,989.44,0.31031327]
[1610380007036,4.00959,990.61,989.16,0.31035429]
[1610380007437,4.00959,990.61,989.06,0.31037037]
[1610380007637,4.00959,990.61,989.05,0.31041064]
[1610380007838,1.834,991.49,989.05,0.31041064]
[1610380008039,1.834,991.49,989.08,0.31041296]
[1610380008238,1.74323,994.82,989.08,0.31041296]
[1610380008440,4.00959,992.27,992.09,4.00959]
[1610380008840,1.879,992.27,989.5,0.31033851]
[1610380009040,1.879,992.27,989.47,0.31027882]
[1610380009443,1.879,992.27,989.58,0.31030711]
[1610380009641,1.879,992.27,989.58,2.26930711]
[1610380009841,1.879,992.27,989.74,0.31018081]
[1610380010042,1.879,992.27,989.79,0.31020422]
[1610380010240,1.879,992.27,989.79,2.68120422]
[1610380010443,1.879,992.27,992.24,4.00959]
[1610380011451,1.829,992.27,992.24,4.00959]
[1610380011647,1.829,992.27,991.05,1.804]
[1610380011846,1.829,992.27,989.95,0.31004959]
[1610380012050,1.829,992.27,989.77,0.31017195]
[1610380012458,1.829,992.27,989.67,0.62034391]
[1610380012459,4.00959,991.65,991.6,4.00959]
[1610380012665,5.60859,991.65,989.54,0.310237]
[1610380012882,5.60859,991.65,989.42,0.31024332]
[1610380013072,5.60859,991.65,989.3,0.31030663]
[1610380013265,1.599,991.65,989.3,0.31030663]
[1610380013466,1.599,991.65,989.24,0.31034383]
[1610380013652,1.599,991.65,989.8,9.0]
[1610380013861,1.599,991.65,989.81,2.0508]
[1610380014261,1.829,992.27,989.82,9.0]
[1610380014454,4.00959,992.26,989.82,9.0]
[1610380014660,4.00959,992.26,989.78,0.31020154]
[1610380014866,4.00959,992.26,989.78,9.31020154]
[1610380015056,4.00959,992.26,989.78,9.0]
[1610380015269,4.00959,992.26,989.66,0.31021528]
[1610380015849,6.05559,992.26,989.58,1.959]
[1610380016072,6.05559,992.26,989.26,0.31031051]
[1610380016451,4.00959,990.25,989.87,4.00959]
[1610380016854,1.773,991.26,989.87,4.00959]
[1610380017054,1.773,991.26,989.87,5.99559]
[1610380018555,4.00959,990.85,990.53,4.00959]
[1610380018954,1.773,991.26,990.53,4.00959]
[1610380019557,1.773,991.26,990.43,1.514]
[1610380020559,4.00959,990.44,990.43,1.514]
[1610380021159,4.00959,990.44,989.87,1.986]
[1610380021359,4.00959,990.44,988.5,0.31049882]
[1610380021575,5.52959,990.44,988.5,0.31049882]
[1610380021761,5.52959,990.44,988.3,0.31057477]
[1610380022168,5.52959,990.44,988.05,0.31060314]
[1610380022373,5.52959,990.44,988.02,0.31062686]
[1610380022565,4.00959,989.57,988.02,0.31062686]
[1610380022768,4.00959,989.57,987.94,0.3106345]
[1610380023060,4.00959,989.57,987.9,0.31069555]
[1610380023374,4.00959,989.57,987.7,0.31070265]
[1610380023766,4.00959,989.57,987.51,0.31082152]
[1610380023966,4.00959,989.57,987.11,1.55410761]
[1610380023967,4.00959,989.57,987.32,0.31084525]
[1610380024170,2.188,989.59,987.32,0.31084525]
[1610380024363,2.188,989.59,987.32,2.309]
[1610380024568,4.00959,989.28,987.32,2.309]
[1610380026566,4.00959,988.22,988.05,4.00959]
[1610380026766,4.00959,988.22,987.32,2.309]
[1610380026968,1.9916,989.58,987.32,2.309]
[1610380028565,4.00959,987.96,987.92,4.00959]
[1610380028768,4.00959,987.96,987.32,2.309]
[1610380029367,4.00959,987.96,987.25,2.0488]
[1610380030567,4.00959,987.49,987.34,4.00959]
[1610380030968,4.00959,987.49,986.44,2.0525]
[1610380030969,4.00959,987.49,986.57,0.31115055]
[1610380031167,6.13459,987.49,986.43,0.3111798]
[1610380031569,6.13459,987.49,986.22,0.31120588]
[1610380031969,6.13459,987.49,986.14,2.0424]
[1610380032169,6.13459,987.49,985.77,0.31133961]
[1610380032570,4.1725,987.49,986.06,4.00959]
[1610380032775,4.1725,987.49,986.06,5.70159]
[1610380034574,4.00959,986.63,986.06,1.692]
[1610380035377,4.00959,986.63,984.97,0.3116309]
[1610380035977,4.00959,986.63,984.33,0.31179009]
[1610380036375,4.00959,986.63,984.17,0.31182362]
[1610380036575,4.00959,985.07,984.93,4.00959]
[1610380036780,6.20659,985.07,984.93,4.00959]
[1610380036976,2.197,985.07,984.93,4.00959]
[1610380037980,2.0526,986.0,984.93,4.00959]
[1610380038177,2.0526,986.0,984.93,6.30959]
[1610380038577,4.00959,985.29,984.93,6.30959]
[1610380038777,2.0241,985.28,984.93,6.30959]
[1610380038976,2.0082,985.7,984.94,2.055]
[1610380039177,21.61105251,989.0,984.94,2.055]
[1610380039377,21.643569,989.19,984.94,11.055]
[1610380039578,2.0088,988.24,984.94,11.055]
[1610380039778,78.093,987.28,984.94,2.055]
[1610380040183,78.093,987.28,984.95,9.0]
[1610380040580,78.093,987.28,984.94,2.055]
[1610380040778,79.679,987.28,984.93,2.3]
[1610380042681,79.679,987.28,985.13,4.00959]
[1610380043480,79.679,987.28,984.93,2.3]
[1610380043680,79.679,987.28,983.84,0.31202929]
[1610380044081,79.679,987.28,921.21,0.1293905]
[1610380044082,79.679,987.28,983.8,0.31204838]
[1610380044684,79.679,987.28,984.51,4.00959]
[1610380044881,80.5646,986.14,984.51,1.526]
[1610380045082,82.6286,986.14,983.48,0.31210858]
[1610380045281,82.6286,986.14,983.3,0.31224484]
[1610380045784,57.8482,984.59,983.3,0.31224484]
[1610380045983,57.8482,984.59,983.2,0.62448967]
[1610380045984,60.1292,984.59,982.42,0.3123468]
[1610380046803,60.1292,984.59,982.22,1.24949402]
[1610380047000,60.1292,984.59,982.22,0.31245363]
[1610380047800,60.1292,984.59,982.23,2.0216]
[1610380047996,60.1292,984.59,982.23,3.9586]
[1610380048189,60.1292,984.59,982.24,9.0]
[1610380048687,60.1292,984.59,984.45,4.00959]
[1610380049087,2.281,984.59,984.45,4.00959]
[1610380049287,24.31363855,987.86,984.45,4.00959]
[1610380049487,2.0425,986.59,984.45,4.00959]
[1610380049889,1.9781,987.86,984.45,4.00959]
[1610380050091,2.038,987.2,984.45,4.00959]
[1610380050689,4.00959,984.58,984.3,2.049]
[1610380051488,4.00959,984.58,984.04,1.918]
[1610380051689,4.00959,984.58,982.85,0.31234925]
[1610380051690,6.39959,984.58,982.85,0.31234925]
[1610380052089,6.39959,984.58,982.26,1.29973423]
[1610380052491,6.39959,984.58,981.61,2.50054062]
[1610380052690,2.39,984.58,981.87,4.00959]
[1610380052890,2.39,984.58,981.87,6.12959]
[1610380053890,2.39,984.58,981.88,2.0674]
[1610380054289,2.39,984.58,981.88,11.0674]
[1610380054590,4.00959,983.59,983.16,4.00959]
[1610380054791,4.00959,983.59,981.87,2.12]
[1610380055391,6.11659,983.59,981.87,2.12]
[1610380056592,4.00959,982.83,982.52,4.00959]
[1610380056991,2.0033,983.85,983.59,0.94041]
[1610380058391,63.7565,983.65,983.59,0.94041]
[1610380058593,4.00959,983.6,983.59,0.94041]
[1610380058993,4.00959,983.6,983.59,1e-05]
[1610380059193,4.00959,983.6,980.45,2.50183938]
[1610380059394,2.0509,983.59,980.45,2.50183938]
[1610380059594,2.0509,983.59,981.42,9.0]
[1610380059794,2.0509,983.59,981.42,10.621]
[1610380059998,2.0509,983.59,981.43,9.0]
[1610380060395,1.875,983.65,981.43,9.0]
[1610380060596,1.875,983.65,983.64,4.00959]
[1610380060796,4.00959,984.39,983.64,4.00959]
[1610380061000,1.76867,987.07,983.64,4.00959]
[1610380061999,21.34024736,986.67,983.64,4.00959]
[1610380062396,21.34024736,986.67,983.12,1.924]
[1610380062598,4.00959,983.37,983.12,1.924]
[1610380063200,4.00959,983.37,981.77,0.31259659]
[1610380063398,4.00959,983.37,981.89,2.0406]
[1610380063599,1.823,983.47,981.89,2.0406]
[1610380063798,1.823,983.47,981.51,2.0253]
[1610380063999,2.0575,983.65,981.51,2.0253]
[1610380064598,4.00959,982.71,982.45,4.00959]
[1610380065000,2.252,983.58,982.45,4.00959]
[1610380065199,2.0073,983.57,982.45,4.00959]
[1610380065399,2.252,983.58,982.46,9.0]
[1610380065599,2.252,983.58,982.46,10.821]
[1610380066000,1.986,983.98,982.46,10.821]
[1610380066199,0.65842611,1195.6,982.46,10.821]
[1610380066400,1.38585,989.68,982.56,30.0]
[1610380066602,4.00959,986.1,985.09,4.00959]
[1610380066801,2.0177,987.05,985.09,5.63959]
[1610380067000,2.0177,987.05,985.1,9.0]
[1610380067200,2.0157,987.31,985.1,11.3795]
[1610380067400,22.40586015,987.59,985.1,11.3795]
[1610380067602,2.0393,987.79,985.1,41.3795]
[1610380067801,1.9996,988.09,985.59,79.793]
[1610380068001,2.0057,988.54,985.59,81.981]
[1610380068200,2.0057,988.54,985.6,9.0]
[1610380068400,22.59346277,988.72,985.7,30.0]
[1610380068601,16.64446277,988.72,987.91,4.00959]
[1610380068801,4.00959,988.8,987.91,4.00959]
[1610380069001,4.00959,988.8,987.7,2.0263]
[1610380069204,5.68659,988.8,987.58,1.852]
[1610380069400,5.68659,988.8,985.59,81.981]
[1610380070201,1.55693,988.23,985.59,65.689]
[1610380070419,2.0377,988.22,985.59,2.188]
[1610380070608,2.0377,988.22,984.88,1.0595]
[1610380070809,4.00959,985.6,984.4,0.31201723]
[1610380071003,5.61959,985.6,984.4,0.31201723]
[1610380071406,5.61959,985.6,983.72,0.31222421]
[1610380072210,5.61959,985.6,983.42,9.0]
[1610380072705,4.00959,985.17,983.42,9.0]
[1610380072907,1.61,985.6,983.42,9.0]
[1610380073106,1.61,985.6,983.59,9.0]
[1610380073307,1.61,985.6,983.58,5.0504]
[1610380074808,4.00959,983.96,983.58,5.0504]
[1610380076710,68.7113,984.27,983.58,5.0504]
[1610380076711,4.00959,983.59,983.58,5.0504]
[1610380076910,1.583,984.0,983.58,2.6204]
[1610380077310,77.9506,985.94,983.59,9.0]
[1610380078711,77.9506,985.94,985.54,4.00959]
[1610380078911,77.9506,985.94,984.95,1.72]
[1610380079112,80.2546,985.94,984.95,1.72]
[1610380079514,80.2546,985.94,983.58,2.6204]
[1610380080910,4.00959,983.71,983.6,4.00959]
[1610380081312,4.00959,983.71,983.58,2.6204]
[1610380082312,4.00959,983.71,983.61,75.0373]
[1610380082513,4.00959,983.71,982.82,2.013]
[1610380082711,6.24059,983.71,982.82,2.013]
[1610380082914,4.00959,982.83,982.82,2.013]
[1610380083513,2.023,982.86,981.9,68.8967]
[1610380083713,2.023,982.86,981.9,70.6437]
[1610380084114,2.023,982.86,981.9,79.6437]
[1610380084316,2.023,982.86,981.9,109.6437]
[1610380084516,2.231,983.71,981.9,109.6437]
[1610380084716,59.8595,984.24,981.9,109.6437]
[1610380084915,59.8595,984.24,983.7,4.00959]
[1610380085116,59.8595,984.24,983.7,6.42559]
[1610380085517,72.887,985.9,983.7,6.42559]
[1610380085916,72.887,985.9,983.71,9.0]
[1610380086716,1.9781,988.19,983.71,9.0]
[1610380086917,6.811,990.94,983.71,9.0]
[1610380087318,6.811,990.94,983.8,30.0]
[1610380087319,10.216,990.93,983.8,30.0]
[1610380087718,2.015,990.11,983.81,9.0]
[1610380087921,22.72684613,990.01,984.15,0.31193932]
[1610380088120,22.72684613,990.01,984.15,2.10693932]
[1610380088321,10.216,990.93,984.15,2.10693932]
[1610380088322,22.77891204,990.4,985.9,0.2136]
[1610380088521,22.77891204,990.4,985.9,2.2326]
[1610380088722,22.77891204,990.4,989.44,1.0]
[1610380088922,6.811,990.94,988.76,4.00959]
[1610380089320,6.811,990.94,990.4,4.0]
[1610380089521,6.811,990.94,988.76,4.00959]
[1610380089721,8.858,990.94,987.73,2.087]
[1610380090322,8.858,990.94,986.84,9.0]
[1610380090521,189.6787,989.59,985.9,0.2136]
[1610380090721,2.223,989.59,985.9,0.2136]
[1610380090922,4.00959,987.34,985.9,0.2136]
[1610380091123,6.19259,987.34,985.9,0.2136]
[1610380091523,6.19259,987.34,984.52,9.0]
[1610380091724,6.19259,987.34,983.74,0.31197414]
[1610380092123,4.00959,987.34,983.75,0.3120521]
[1610380092324,4.00959,987.34,983.95,0.31195214]
[1610380092525,4.00959,987.34,983.95,1.90995214]
[1610380092724,4.00959,987.34,983.95,1.598]
[1610380092925,5.9257,988.81,983.95,1.598]
[1610380093124,5.9257,988.81,983.95,10.598]
[1610380093524,5.9257,988.81,983.95,1.598]
[1610380094125,5.9257,988.81,983.96,9.0]
[1610380094325,5.9257,988.81,984.06,30.0]
[1610380094726,5.9257,988.81,984.07,9.0]
[1610380094927,5.9257,988.81,985.41,4.00959]
[1610380095129,5.9257,988.81,985.41,5.72459]
[1610380095325,5.9257,988.81,985.42,9.0]
[1610380095727,1.648,988.82,988.81,0.2]
[1610380095928,1.648,988.82,986.02,2.301]
[1610380096930,4.00959,986.03,986.02,2.301]
[1610380097129,4.00959,986.03,985.42,2.269]
[1610380097529,1.801,986.58,985.42,2.269]
[1610380097929,1.801,986.58,985.43,9.0]
[1610380098129,1.648,988.82,985.53,30.0]
[1610380098333,1.0108,989.32,985.43,9.0]
[1610380098530,1.0108,989.32,985.54,9.0]
[1610380098929,4.00959,986.78,986.07,4.00959]
[1610380099729,4.00959,986.78,985.42,2.269]
[1610380100729,4.00959,986.78,985.12,2.025]
[1610380100929,1.38585,989.1,985.26,4.00959]
[1610380101130,75.1652,987.58,985.26,6.43059]
[1610380101330,2.484,987.58,985.3,30.0]
[1610380101729,2.484,987.58,985.31,9.0]
[1610380101930,2.484,987.58,985.41,30.0]
[1610380102331,2.484,987.58,985.42,9.0]
[1610380102532,22.9624103,990.65,987.58,2.5159]
[1610380102735,22.9624103,990.65,987.58,32.5159]
[1610380102933,22.9624103,990.65,988.49,4.00959]
[1610380103132,22.99271959,990.92,988.49,4.00959]
[1610380103531,23.03934817,991.43,988.49,34.00959]
[1610380103731,23.03934817,991.43,988.5,9.0]
[1610380103932,1.38585,991.81,988.5,9.0]
[1610380103933,23.05126561,991.57,988.5,9.0]
[1610380104532,23.06765021,991.78,988.5,9.0]
[1610380104732,23.06765021,991.78,988.6,30.0]
[1610380104932,4.00959,990.31,989.57,4.00959]
[1610380105132,4.00959,990.31,988.5,2.338]
[1610380105732,66.0677,990.22,988.5,2.338]
[1610380106131,66.0677,990.22,988.27,1.517]
[1610380106333,66.0677,990.22,988.05,2.314]
[1610380107036,4.00959,988.06,988.05,2.314]
[1610380107434,4.00959,988.06,987.34,71.7781]
[1610380108236,4.00959,988.06,987.34,64.5593]
[1610380108435,4.00959,988.06,986.31,64.3662]
[1610380109036,4.00959,986.32,986.31,64.3662]
[1610380109437,6.33759,986.32,986.31,64.3662]
[1610380109638,6.33759,986.32,985.05,79.1376]
[1610380109839,6.33759,986.32,983.46,1.24797981]
[1610380109840,6.33759,986.32,983.48,0.31208138]
[1610380110237,6.33759,986.32,983.07,30.0]
[1610380110238,6.33759,986.32,983.47,9.0]
[1610380110638,6.33759,986.32,983.48,9.0]
[1610380110839,6.33759,986.32,983.5,30.0]
[1610380111039,4.00959,985.55,984.99,4.00959]
[1610380111438,1.845,985.6,984.99,4.00959]
[1610380112454,2.328,986.32,984.99,4.00959]
[1610380112455,2.328,986.32,985.0,9.0]
[1610380112649,2.328,986.32,984.99,4.00959]
[1610380113048,2.328,986.32,984.27,2.158]
[1610380113049,4.00959,985.65,984.33,4.00959]
[1610380113449,5.88759,985.65,984.46,76.1834]
[1610380114857,5.88759,985.65,984.06,2.217]
[1610380115059,1.878,985.65,984.06,2.217]
[1610380115253,1.878,985.65,984.07,9.0]
[1610380115745,1.878,985.65,984.06,2.217]
[1610380116952,1.878,985.65,984.94,4.00959]
[1610380117148,1.878,985.65,984.06,2.217]
[1610380117646,1.878,985.65,983.48,1.664]
[1610380117846,1.878,985.65,983.33,65.926]
[1610380118451,1.38585,985.89,983.33,65.926]
[1610380118649,1.38585,985.89,983.33,67.8]
[1610380119049,4.00959,983.34,983.33,67.8]
[1610380119648,4.00959,983.34,983.33,65.926]
[1610380120248,1.543,983.82,983.33,65.926]
[1610380121250,4.00959,984.27,983.33,65.926]
[1610380121448,4.00959,984.27,983.33,62.6344]
[1610380121649,4.00959,984.27,983.3,1.94]
[1610380122049,4.00959,984.27,982.59,1.498]
[1610380123051,1.552,984.46,982.78,4.00959]
[1610380123653,1.552,984.46,982.79,9.0]
[1610380123854,1.552,984.46,982.79,10.958]
[1610380124052,1.552,984.46,982.79,1.958]
[1610380124251,70.4215,984.46,982.79,1.958]
[1610380125053,4.00959,984.25,983.59,4.00959]
[1610380125652,70.4215,984.46,983.59,4.00959]
[1610380126052,70.4215,984.46,983.6,9.0]
[1610380126251,70.4215,984.46,983.6,39.0]
[1610380126454,1.552,984.46,983.6,39.0]
[1610380126953,76.9366,985.55,983.6,39.0]
[1610380127154,4.00959,985.22,984.66,4.00959]
[1610380127352,2.075,985.22,984.66,4.00959]
[1610380128453,76.9366,985.55,984.76,30.0]
[1610380128855,76.9366,985.55,984.77,9.0]
[1610380128856,69.7036,985.55,984.77,9.0]
[1610380129055,6.3368,986.84,985.55,2.9575]
[1610380129254,2.0048,988.34,985.55,2.9575]
[1610380129255,2.0048,988.34,985.65,30.0]
[1610380129454,6.3564,988.18,985.56,9.0]
[1610380129654,6.3564,988.18,985.55,5.0875]
[1610380130055,6.3564,988.18,985.66,9.0]
[1610380130256,6.3564,988.18,985.55,5.0875]
[1610380130654,6.3564,988.18,985.55,2.9575]
[1610380130857,2.0342,988.27,985.55,2.9575]
[1610380131057,4.00959,985.56,985.22,2.0425]
[1610380132464,5.60059,985.56,985.22,2.0425]
[1610380132866,5.60059,985.56,983.64,1.791]
[1610380133066,4.00959,984.89,984.6,4.00959]
[1610380133267,1.738,984.89,984.7,30.0]
[1610380133467,1.591,985.56,985.23,9.0]
[1610380133667,1.591,985.56,985.33,30.0]
[1610380134069,1.591,985.56,984.81,2.476]
[1610380135069,1.591,985.56,985.55,4.00959]
[1610380135669,6.2569,987.35,985.55,4.00959]
[1610380135670,74.6381,986.92,985.55,4.00959]
[1610380135869,74.6381,986.92,985.55,2.266]
[1610380136269,74.6381,986.92,983.99,72.0232]
[1610380136471,106.8781,986.92,983.99,72.0232]
[1610380136671,76.8781,986.92,983.99,72.0232]
[1610380137071,76.8781,986.92,984.23,4.00959]
[1610380137270,76.8781,986.92,983.99,72.0232]
[1610380137470,0.6,986.72,983.99,72.0232]
[1610380137670,2.22,986.72,983.99,102.0232]
[1610380138071,2.22,986.72,984.0,39.0]
[1610380138271,2.22,986.72,984.0,11.443]